{"text_format":"1","workbook":"xlsx","n_sheets":2,"sheets":["Сума мужчыны","Сума жанчыны"],"not_rendered":{"charts":0,"images":0,"macros":1,"external_links":0,"defined_names":4,"comments":0,"pivot_tables":0},"unopened":[],"bounds":{"document_bytes":16777216,"sheet_cells":100000,"rows_first":2000,"rows_last":500,"rows_between":2000,"halvings":0,"cell_chars":16384,"cell_head_chars":4096},"cells_cut":0,"cells_raw":0,"read":"whole","date_system":"1900"}

{"sheet":"Сума мужчыны","index":0,"n_rows":35,"n_cols":21,"rows_kept":35,"cut":false,"hidden":false,"merged":[[1,2,1,3]]}
[14]
[7]
["Месца","ПРОЗВІШЧА, ІМЯ",null,null,"28.03.15","29.03.15","18.04.15","02.05.15","13.06.15","11.07.15","12.07.15","25.07.15","26.07.15","01.08.15","02.08.15","10.10.15","24.10.15","25.10.15","Кубкавыя ачкі","Сярэд","М"]
[{"$f":"U4","v":1},{"$f":"PROPER(C4)","v":"Шылак Аляксей"},"ШЫЛАК АЛЯКСЕЙ",null,476,801,614,374,988,1000,713,435,523,933,819,779,888,916,6345,906.42857142857144,1]
[2,"Нарышкін Міхаіл","НАРЫШКІН МІХАІЛ",null,null,null,1000,690,990,null,null,662,716,null,null,1000,1000,0,6058,865.42857142857144,2]
[3,"Салодкін Сяргей","САЛОДКІН СЯРГЕЙ",null,null,1000,null,null,null,969,592,null,null,1000,1000,733,null,null,5294,882.33333333333337,3]
[4,"Мінчукоў Аляксандр","МІНЧУКОЎ АЛЯКСАНДР",null,null,null,null,496,901,null,1000,0,null,null,null,null,969,1000,4366,873.2,4]
[5,"Кухто Пётр","КУХТО ПЁТР",null,394,600,526,null,795,0,792,566,381,null,null,572,null,null,4245,606.42857142857144,5]
[6,"Міронаў Дзмітрый","МІРОНАЎ ДЗМІТРЫЙ",null,1000,0,80,1000,null,null,null,777,876,null,null,0,null,null,3733,746.6,6]
[7,"Бажанскі Віталь","БАЖАНСКІ ВІТАЛЬ",null,371,491,0,383,null,null,null,null,null,null,null,642,901,676,3464,577.33333333333337,7]
[8,"Манахаў Раман","МАНАХАЎ РАМАН",null,436,77,455,226,null,401,603,null,null,null,null,550,null,761,3432,490.28571428571428,8]
[9,"Юніцкі Вадзім","ЮНІЦКІ ВАДЗІМ",null,119,769,585,556,null,null,617,206,324,null,null,null,null,null,3176,453.71428571428572,9]
[10,"Слабодзька Дзмітрый","СЛАБОДЗЬКА ДЗМІТРЫЙ",null,null,null,null,526,1000,557,744,null,null,null,null,295,null,null,3122,624.4,10]
[11,"Саннікаў Сяргей","САННІКАЎ СЯРГЕЙ",null,383,157,0,174,237,407,339,null,null,null,null,null,522,442,2504,357.71428571428572,11]
[12,"Халік Маргус","ХАЛІК МАРГУС",null,null,null,null,null,null,null,null,1100,1100,null,null,null,null,null,2200,1100,12]
[13,"Акушка Канстанцін","АКУШКА КАНСТАНЦІН",null,null,null,null,null,null,null,null,null,null,888,913,null,null,null,1801,900.5,13]
[14,"Сарока Аляксандр","САРОКА АЛЯКСАНДР",null,null,null,407,347,794,null,null,null,219,null,null,0,null,null,1767,441.75,14]
[15,"Давідовіч Дзмітрый","ДАВІДОВІЧ ДЗМІТРЫЙ",null,null,null,null,null,null,null,null,null,null,603,414,396,null,null,1413,471,15]
[16,"Дакучаеў Ілля","ДАКУЧАЕЎ ІЛЛЯ",null,null,null,199,280,null,437,444,null,null,null,null,null,null,null,1360,340,16]
[17,"Юрок Антон","ЮРОК АНТОН",null,104,702,null,null,null,null,null,null,null,null,null,307,null,null,1113,371,17]
[18,"Міхайлюкоў Міхаіл","МІХАЙЛЮКОЎ МІХАІЛ",null,null,null,null,null,null,null,null,null,null,489,551,null,null,null,1040,520,18]
[19,"Шынкевіч Аляксей","ШЫНКЕВІЧ АЛЯКСЕЙ",null,null,null,null,null,0,290,509,null,null,null,null,null,null,null,799,399.5,19]
[20,"Шванц Аляксей","ШВАНЦ АЛЯКСЕЙ",null,null,null,null,null,null,null,null,null,null,455,317,0,null,null,772,386,20]
[21,"Сынкоў Міхаіл","СЫНКОЎ МІХАІЛ",null,null,null,null,null,710,null,null,null,null,null,null,null,null,null,710,710,21]
[22,"Усніч Аляксей","УСНІЧ АЛЯКСЕЙ",null,null,null,null,null,590,null,null,null,null,null,null,null,null,null,590,590,22]
[23,"Марчук Валерый","МАРЧУК ВАЛЕРЫЙ",null,null,null,null,null,null,null,null,null,null,null,null,582,null,null,582,582,23]
[24,"Губарэвіч Антон","ГУБАРЭВІЧ АНТОН",null,null,null,null,null,null,null,null,null,null,null,null,512,null,null,512,512,24]
[25,"Жук Іван","ЖУК ІВАН",null,null,null,null,null,null,null,null,null,null,null,null,505,null,null,505,505,25]
[26,"Савасцюк Ігар","САВАСЦЮК ІГАР",null,null,null,null,null,null,null,null,null,null,0,499,null,null,null,499,499,26]
[27,"Бяспалаў Раман","БЯСПАЛАЎ РАМАН",null,null,null,null,360,null,null,null,null,null,null,null,null,null,null,360,360,27]
[28,"Кускоў Павел","КУСКОЎ ПАВЕЛ",null,null,null,null,null,null,305,null,null,null,null,null,null,null,null,305,305,28]
[29,"Сарока Аляксей","САРОКА АЛЯКСЕЙ",null,null,null,null,null,null,null,null,299,null,null,null,null,null,null,299,299,29]
[30,"Ціхаміраў Яўген","ЦІХАМІРАЎ ЯЎГЕН",null,null,null,null,null,201,null,null,null,null,null,null,null,null,null,201,201,30]
[31,"Клігуноў Яўген","КЛІГУНОЎ ЯЎГЕН",null,null,null,null,null,176,null,null,null,null,null,null,null,null,null,176,176,31]
[32,"Грамыка Іван","ГРАМЫКА ІВАН",null,null,null,null,null,0,null,null,null,null,null,null,null,null,null,0,0,32]

{"sheet":"Сума жанчыны","index":1,"n_rows":17,"n_cols":21,"rows_kept":17,"cut":false,"hidden":false,"merged":[[1,2,1,3]]}
[14]
[7]
["Месца","ПРОЗВІШЧА, ІМЯ",null,null,"28.03.15","29.03.15","18.04.15","02.05.15","04.07.14","11.07.15","12.07.15","25.07.15","26.07.15","01.08.15","02.08.15","10.10.15","24.10.15","25.10.15","Кубкавыя ачкі","Сярэд","М"]
[{"$f":"U4","v":1},{"$f":"PROPER(C4)","v":"Арлова Святлана"},"АРЛОВА СВЯТЛАНА",null,null,null,1000,1000,1000,1000,1000,null,null,null,null,842,1000,1000,7000,1000,1]
[{"$f":"U5","v":2},{"$f":"PROPER(C5)","v":"Нарышкіна Вольга"},"НАРЫШКІНА ВОЛЬГА",null,null,null,177,0,462,834,717,1100,1100,null,null,1000,815,612,6178,882.57142857142856,2]
[3,"Баўшэвіч Ганна","БАЎШЭВІЧ ГАННА",null,1000,1000,null,479,null,null,null,null,760,760,1000,null,null,null,4999,833.16666666666663,3]
[4,"Лебедзева Алена","ЛЕБЕДЗЕВА АЛЕНА",null,563,346,0,85,209,280,63,290,0,null,null,0,null,null,1836,262.28571428571428,4]
[5,"Ратнікава Ніна","РАТНІКАВА НІНА",null,null,null,null,null,null,null,null,null,null,1000,808,null,null,null,1808,904,5]
[6,"Шынкевіч Дарына","ШЫНКЕВІЧ ДАРЫНА",null,null,null,null,null,null,424,0,null,null,757,544,null,null,null,1725,575,6]
[7,"Лапіцкая Ірына","ЛАПІЦКАЯ ІРЫНА",null,null,null,null,null,null,null,null,null,null,794,723,null,null,null,1517,758.5,7]
[8,"Бандаровіч Ірына","БАНДАРОВІЧ ІРЫНА",null,null,null,null,238,null,null,null,null,null,null,null,272,null,null,510,255,8]
[9,"Юрок Ірына","ЮРОК ІРЫНА",null,null,null,null,null,null,null,null,null,null,null,null,415,null,null,415,415,9]
[10,"Хілько Алена","ХІЛЬКО АЛЕНА",null,null,null,null,null,null,null,null,null,null,null,null,309,null,null,309,309,10]
[11,"Іванова Аляксандра","ІВАНОВА АЛЯКСАНДРА",null,null,null,null,null,254,null,null,null,null,null,null,null,null,null,254,254,11]
[12,"Пестава Кацярына","ПЕСТАВА КАЦЯРЫНА",null,null,null,null,null,null,null,null,null,null,null,null,151,null,null,151,151,12]
[13,"Шылак Алена","ШЫЛАК АЛЕНА",null,null,null,null,null,null,null,null,null,null,null,0,null,null,null,0,0,13]
[13,"Дземідзенка Вольга","ДЗЕМІДЗЕНКА ВОЛЬГА",null,null,null,null,null,0,null,null,null,null,null,null,null,null,null,0,0,13]